﻿Supplier,Nett Amount,MCC,Type of Expenditure,Payment Date,Service Area
WM MORRISONS STORE,6.00,5411,Provisions (Not for resale),30/04/2021,Ernest Bold Court
A2BGo Carz,9.00,4121,Client Transport,30/04/2021,Youth Offending Team
A2BGo Carz,7.30,4121,Client Transport,30/04/2021,Youth Offending Team
A2BGo Carz,7.30,4121,Client Transport,30/04/2021,Youth Offending Team
A2BGo Carz,9.90,4121,Client Transport,30/04/2021,Youth Offending Team
ABC Cars,4.00,4121,Client Transport,30/04/2021,Youth Offending Team
A2BGo Carz,9.00,4121,Client Transport,30/04/2021,Youth Offending Team
A2BGo Carz,9.90,4121,Client Transport,30/04/2021,Youth Offending Team
A2BGo Carz,3.50,4121,Client Transport,30/04/2021,Youth Offending Team
A2BGo Carz,6.30,4121,Client Transport,30/04/2021,Youth Offending Team
A2BGo Carz,3.50,4121,Client Transport,30/04/2021,Youth Offending Team
Amazon.co.uk MK70W3LV4,226.46,5969,Books,30/04/2021,Discretionary Fund
Amazon.co.uk MK4DZ7LJ4,135.31,5969,Books,30/04/2021,Discretionary Fund
Amazon.co.uk MK25X7L04,135.30,5969,Books,30/04/2021,Discretionary Fund
Amazon.co.uk MK04454B4,135.30,5969,Books,30/04/2021,Discretionary Fund
Amazon.co.uk MK1JM04E4,341.51,5969,Books,30/04/2021,Discretionary Fund
ARGOS LTD,247.33,5310,,30/04/2021,LAC Transitions Team
Amazon.co.uk MK34844H4,19.36,5969,Books,30/04/2021,Global Budgets
ARGOS LTD,658.31,5310,Section 17,30/04/2021,Winter Grant
ARGOS LTD,136.62,5310,Section 17,30/04/2021,Winter Grant
PAYPAL  KCJONESCONF,36.00,7922,Training Expenses,30/04/2021,Workforce Development
TFM FARM   COUNTRY,79.87,0763,Equipment - Purchase,30/04/2021,Northicote Farm
DVSA,401.00,9399,Services - Professional Fees,30/04/2021,Fleet Management
AMZNMktplace,14.16,5999,Equipment - Purchase,30/04/2021,Adult Services - West
OAKLAND,714.58,7011,Accommodation Costs,30/04/2021,Destitute Plus
OAKLAND,714.58,7011,Accommodation Costs,30/04/2021,Destitute Plus
POSTURITE LTD,89.95,7399,Equipment - Purchase,30/04/2021,Adult Services - West
A2BGo Carz,3.50,4121,Direct Work With Children,30/04/2021,Power2 Team
A2BGo Carz,4.10,4121,Direct Work With Children,30/04/2021,Power2 Team
A2BGo Carz,3.50,4121,Direct Work With Children,30/04/2021,Power2 Team
A2BGo Carz,4.10,4121,Direct Work With Children,30/04/2021,Power2 Team
MDP Supplies,29.56,5200,Direct Work With Children,30/04/2021,Power2 Team
J D SPORTS PLC,-3.00,5941,,30/04/2021,LAC Transitions Team
DMARC ANALYZER,169.26,5734,,30/04/2021,Strategic ICTS (ICT Serv Budget)
SCREWFIX DIRECT,20.00,5211,Equipment - Purchase,30/04/2021,Car Parks Operational Staff
SCREWFIX DIRECT,54.99,5211,Protective Clothing,30/04/2021,Civic Centre Repairs & Maintenance
FARMFOODS 613,16.22,5411,Accommodation Costs,30/04/2021,LAC Transitions Team
E.ON ENERGY SOLUTIONS,88.64,4900,Accommodation Costs,30/04/2021,LAC Transitions Team
ALDI 94 772,14.30,5411,Accommodation Costs,30/04/2021,LAC Transitions Accommodation
HOME BARGAINS WOLVERHA,17.88,5251,Accommodation Costs,30/04/2021,LAC Transitions Accommodation
WP-CENTRAL TAXIS L,280.00,4121,Section 17,30/04/2021,Court Team
POST OFFICE COUNTER,6.85,9402,,29/04/2021,LAC Transitions Team
AMZNMKTPLACE AMAZON.CO,106.47,5999,Computing - Purchase of Hardware,29/04/2021,Strategic ICTS (ICT Serv Budget)
AMZNMKTPLACE AMAZON.CO,221.58,5999,Computing - Consumables,29/04/2021,Strategic ICTS (ICT Serv Budget)
TERMINUS CONTRACT HIRE,429.17,7513,Hire of Vehicles,29/04/2021,PCC Election
AMZNMKTPLACE AMAZON.CO,8.32,5999,,29/04/2021,Power2 Team
Amazon Music MK99T9OY4,3.99,5735,,29/04/2021,Head of Service Specialist Int Support
AMZ Amazon.co.uk,-424.04,5969,,29/04/2021,Bert Williams Leisure Centre
MARKS&SPENCER PLC,82.50,5411,Clothing / Uniforms,29/04/2021,Cemeteries
MARKS&SPENCER PLC,82.50,5411,Clothing / Uniforms,29/04/2021,Cemeteries
HOLIDAY INNS,86.99,3501,Accommodation Costs,29/04/2021,Private Hire Vehicles
AMZNMktplace,191.94,5999,Equipment - Purchase,29/04/2021,Parking Enforcement
GOOGLE  ADS9680351324,500.00,7311,,28/04/2021,
A2BGo Carz,3.80,4121,Direct Work With Children,28/04/2021,Power2 Team
A2BGo Carz,3.50,4121,Direct Work With Children,28/04/2021,Power2 Team
A2BGo Carz,3.80,4121,Direct Work With Children,28/04/2021,Power2 Team
A2BGo Carz,3.50,4121,Direct Work With Children,28/04/2021,Power2 Team
HUGHES,153.46,5732,Accommodation Costs,28/04/2021,LAC Transitions Accommodation
ALDI 94 772,42.15,5411,,28/04/2021,LAC Transitions Team
AMZNMKTPLACE AMAZON.CO,112.69,5999,,28/04/2021,Strategic ICTS (ICT Serv Budget)
AMZNMktplace,20.90,5999,Equipment - Purchase,28/04/2021,PCC Election
AMZNMktplace,35.35,5999,,28/04/2021,Power2 Team
A2BGo Carz,7.90,4121,,28/04/2021,Power2 Team
A2BGo Carz,4.00,4121,,28/04/2021,Power2 Team
A2BGo Carz,7.90,4121,,28/04/2021,Power2 Team
A2BGo Carz,4.00,4121,,28/04/2021,Power2 Team
A2BGo Carz,5.30,4121,,28/04/2021,Power2 Team
A2BGo Carz,5.30,4121,,28/04/2021,Power2 Team
AMZNMktplace,29.99,5999,,28/04/2021,Power2 Team
AMZNMktplace,16.14,5999,,28/04/2021,Power2 Team
Amazon.co.uk MK9OL6CW4,17.96,5969,,28/04/2021,Power2 Team
SCREWFIX DIRECT,59.99,5211,Protective Clothing,28/04/2021,Car Parks Operational Staff
SCREWFIX DIR LTD,4.16,5211,Equipment - Purchase,28/04/2021,Technician
Amazon.co.uk M49HW9YY4,50.33,5969,Equipment - Purchase,28/04/2021,Aldersley Leisure Village
WP-CENTRAL TAXIS L,190.40,4121,Client Transport,28/04/2021,Alternative Provision
A2BGo Carz,7.60,4121,Client Transport,28/04/2021,Youth Offending Team
A2BGo Carz,7.60,4121,Client Transport,28/04/2021,Youth Offending Team
A2BGo Carz,9.00,4121,Client Transport,28/04/2021,Youth Offending Team
A2BGo Carz,12.50,4121,Client Transport,28/04/2021,Youth Offending Team
ARGOS LTD,8.32,5310,Equipment - Purchase,28/04/2021,Cemeteries
ZOOM.US 888-799-9666,13.17,4814,Subscriptions,28/04/2021,Talk English
SSE,130.74,4900,Client Allowances,28/04/2021,LAC Transitions Accommodation
123 REG LTD,9.99,5968,Subscriptions,28/04/2021,Technical Support
AMZNMktplace,15.67,5999,Books,28/04/2021,Global Budgets
WWW.AVANTIWESTCOAST.CO,77.90,4112,Client Transport,28/04/2021,Looked After Team 2
CardtronicsUK,150.00,6011,No Recourse to Public Funds,28/04/2021,CIN/CP Social Work Unit - Area 3
SAINSBURYS SACAT (2340,5.08,5411,,28/04/2021,Civic Centre Catering
AMZNMktplace,18.00,5999,,28/04/2021,Meals on Wheels
AMZNMktplace,12.45,5999,Equipment - Purchase,28/04/2021,Ernest Bold Court
SAINSBURYS.CO.UK,249.54,5411,Provisions (Not for resale),28/04/2021,Duke Street Bungalows
DVLA PR ONLINE,80.00,9399,R3004,27/04/2021,Fleet Management
DVLA VEHICLE TAX,277.50,9311,R3004,27/04/2021,Fleet Management
DVLA VEHICLE TAX,167.50,9311,R3004,27/04/2021,Fleet Management
DVLA VEHICLE TAX,202.50,9311,R3004,27/04/2021,Fleet Management
DVLA VEHICLE TAX,202.50,9311,R3004,27/04/2021,Fleet Management
HMCOURTS-SERVICE.G,75.00,9222,Professional fees,27/04/2021,Mental Health Assessment & Care Mgmt
DVLA VEHICLE TAX,167.50,9311,R3004,27/04/2021,Fleet Management
DVLA DRIVER ONLINE,34.00,9399,,27/04/2021,LAC Transitions Team
ARGOS LTD,16.66,5310,Computing - Purchase of Hardware,27/04/2021,Visitor Economy - Development
W M MORRISONS.COM,201.64,5411,Provisions (Not for resale),27/04/2021,Bradley Resource Centre
ASDA GROCERIES ONLINE,-1.01,5411,Provisions (Not for resale),27/04/2021,Ernest Bold Court
ASDA GROCERIES ONLINE,0.08,5411,Provisions (Not for resale),27/04/2021,Ernest Bold Court
ASDA GROCERIES ONLINE,66.97,5411,Provisions (Not for resale),27/04/2021,Ernest Bold Court
DAVENPORT BURGESS,4.17,7251,Accommodation Costs,27/04/2021,LAC Transitions Accommodation
ROYAL BK OF SCOTLAND,133.33,6011,Client Allowances,27/04/2021,LAC Transitions Team
A2BGo Carz,9.90,4121,Client Transport,27/04/2021,Youth Offending Team
AMZNMKTPLACE AMAZON.CO,262.48,5999,Equipment - Purchase,27/04/2021,Aldersley Leisure Village
AMZNMktplace,87.47,5999,Equipment - Purchase,27/04/2021,Aldersley Leisure Village
A2BGo Carz,5.10,4121,Client Transport,27/04/2021,Youth Offending Team
A2BGo Carz,9.00,4121,Client Transport,27/04/2021,Youth Offending Team
A2BGo Carz,5.10,4121,Client Transport,27/04/2021,Youth Offending Team
MARKS&SPENCER PLC,165.00,5411,Clothing / Uniforms,27/04/2021,Cemeteries
AMZNMktplace,57.47,5999,Client Allowances,27/04/2021,LAC Transitions Team
ASDA GROCERIES ONLINE,97.42,5411,Provisions (Not for resale),27/04/2021,Upper Pendeford Farm Childrens Home
ASDA GROCERIES ONLINE,-3.72,5411,Provisions (Not for resale),27/04/2021,Key to Inspiration
ASDA GROCERIES ONLINE,280.38,5411,Provisions (Not for resale),27/04/2021,Key to Inspiration
KEHF LIMITED,138.00,8249,,27/04/2021,Service Director Disab & Mental Health
SAINSBURYS.CO.UK,82.01,5411,Provisions (Not for resale),27/04/2021,Discretionary Fund
Amazon.co.uk M42FS0WN4,59.98,5969,R4007,27/04/2021,Inclusion Support
WWW.HEATHBOOKS.CO.UK,57.80,5942,R4007,27/04/2021,Inclusion Support
WP-CENTRAL TAXIS L,74.00,4121,Section 17,27/04/2021,CIN/CP Social Work Unit - Area 8
WP-CENTRAL TAXIS L,43.20,4121,Section 17,27/04/2021,CIN/CP Social Work Unit - Area 8
E C STRAITON,136.29,0742,Professional fees,27/04/2021,Northicote Farm
ADVANCED PROTEINS UNLT,15.00,4900,Refuse Collection,27/04/2021,Northicote Farm
A2BGo Carz,8.90,4121,Direct Work With Children,26/04/2021,Power2 Team
A2BGo Carz,8.90,4121,Direct Work With Children,26/04/2021,Power2 Team
IZ  D & K TRADING (MID,4.75,5999,Accommodation Costs,26/04/2021,LAC Transitions Accommodation
SumUp   Colin caddick,34.79,5399,Accommodation Costs,26/04/2021,LAC Transitions Accommodation
WWW.STUFF-UK.NET,440.34,7372,,26/04/2021,Strategic ICTS (ICT Serv Budget)
AMZNMKTPLACE AMAZON.CO,419.82,5999,Computing - Purchase of Hardware,26/04/2021,Strategic ICTS (ICT Serv Budget)
ADOBE STOCK,19.99,5734,R4317,26/04/2021,Communications & Marketing - General
GOOGLE  ADS5477893156,206.27,7311,R4317,26/04/2021,Regional Adoption Agency
FREEPIK & FLATICON,7.46,7333,Subscriptions,26/04/2021,Communications & Marketing - General
NOVOTEL WOLVERHAMPTON,49.00,7011,Section 17,26/04/2021,CAT
Trainline,15.49,4112,Section 17,26/04/2021,Court Team
CardtronicsUK,42.49,6011,Client Allowances,26/04/2021,LAC Transitions Team
POST OFFICE COUNTER,7.65,9402,Comms - Postage,26/04/2021,Regional Adoption Agency
Amazon.co.uk M44RS6IK4,508.85,5969,,26/04/2021,Bert Williams Leisure Centre
A2BGo Carz,9.90,4121,Client Transport,26/04/2021,Youth Offending Team
DIXONS FAMILY BUTCHERS,195.00,5499,Provisions (Not for resale),26/04/2021,Bradley Resource Centre
A2BGo Carz,5.10,4121,Client Transport,26/04/2021,Youth Offending Team
SEVERN TRENT WATER,88.66,4900,Accommodation Costs,26/04/2021,LAC Transitions Team
A2BGo Carz,9.00,4121,Client Transport,26/04/2021,Youth Offending Team
A2BGo Carz,7.00,4121,Client Transport,26/04/2021,Youth Offending Team
A2BGo Carz,8.20,4121,Client Transport,26/04/2021,Youth Offending Team
WWW.MYPOSTSHOP.COM,88.88,5111,Comms - Postage,26/04/2021,Youth Offending Team
ROOKERY Sainsburys Ba,20.00,6011,Client Allowances,26/04/2021,LAC Transitions Team
APPLE.COM/BILL,9.99,5815,Computing - Purchase of Software,26/04/2021,Managing Director
AMZNMktplace,24.98,5999,Provisions (Not for resale),26/04/2021,Upper Pendeford Farm Childrens Home
CITY OF WOLVERHAMPTON,11.00,9399,Financial Assistance In Exceptional Circ,26/04/2021,Looked After Team 2
CITY OF WOLVERHAMPTON,16.00,9399,Financial Assistance In Exceptional Circ,26/04/2021,Looked After Team 2
A2BGo Carz,5.10,4121,Client Transport,26/04/2021,Youth Offending Team
TIMPSON LTD,29.45,5999,Equipment - Purchase,26/04/2021,Business Support Services
SAINSBURYS (2340),35.55,5411,,26/04/2021,Civic Centre Catering
GEN REGISTER OFFICE,-66.50,9399,Section 17,26/04/2021,Court Team
GEN REGISTER OFFICE,25.00,9399,Section 17,26/04/2021,CIN/CP Social Work Unit - Area 8
AMZNMKTPLACE AMAZON.CO,9.90,5999,Catering,26/04/2021,Key to Inspiration
POST OFFICE COUNTER,5.30,9402,Client Allowances,23/04/2021,LAC Transitions Team
WP-CENTRAL TAXIS L,15.20,4121,Client Transport,23/04/2021,Looked After Team 2
WWW.WOLVERHAMPTON.GOV.,73.29,9399,Client Allowances,23/04/2021,LAC Transitions Accommodation
ASDA SUPERSTORE,29.67,5411,Catering,23/04/2021,Civic Centre Catering
SAINSBURYS (2340),45.00,5411,Catering,23/04/2021,Civic Centre Catering
WWW.NOBISCO.CO.UK,19.20,5085,Cleaning Supplies and Materials,23/04/2021,Community Enablement
GEN REGISTER OFFICE,73.00,9399,Section 17,23/04/2021,Court Team
GEN REGISTER OFFICE,14.00,9399,Section 17,23/04/2021,CIN/CP Social Work Unit - Area 8
DVLA VEHICLE TAX,277.50,9311,R3004,23/04/2021,Fleet Management
DVLA VEHICLE TAX,277.50,9311,R3004,23/04/2021,Fleet Management
DVLA VEHICLE TAX,277.50,9311,R3004,23/04/2021,Fleet Management
DVLA DRIVER ONLINE,34.00,9399,,23/04/2021,
SCREWFIX DIRECT,19.98,5211,Materials,23/04/2021,Cemeteries
ARGOS LTD,23.94,5310,Independant Living Allowance,23/04/2021,LAC Transitions Team
HM PASSPORT OFFICE,54.00,9399,,23/04/2021,LAC Transitions Team
HM PASSPORT OFFICE,75.50,9399,,23/04/2021,LAC Transitions Team
AMZNMKTPLACE AMAZON.CO,43.22,5999,Computing - Consumables,23/04/2021,Strategic ICTS (ICT Serv Budget)
AMZNMKTPLACE AMAZON.CO,85.02,5999,Computing - Consumables,23/04/2021,Strategic ICTS (ICT Serv Budget)
AMZNMktplace,16.00,5999,Books,23/04/2021,Archives
Amazon.co.uk M41RU0KR4,17.44,5969,Books,23/04/2021,Archives
ARGOS LTD,199.99,5310,,23/04/2021,Key to Inspiration
Dunelm,78.75,5712,,23/04/2021,LAC Transitions Team
J D SPORTS 595,200.00,5941,Client Allowances,23/04/2021,LAC Transitions Team
BENTLEY BRIDGE WAY SPO,7.50,5941,Client Allowances,23/04/2021,LAC Transitions Team
ARGOS LTD,206.95,5310,Client Allowances,23/04/2021,LAC Transitions Team
ARGOS LTD,54.17,5310,Client Allowances,23/04/2021,LAC Transitions Team
J P LENNARD LTD,477.96,5941,,23/04/2021,Bert Williams Leisure Centre
AMZNMktplace,6.14,5999,Equipment - Purchase,23/04/2021,Ernest Bold Court
ARGOS LTD,225.95,5310,Client Allowances,23/04/2021,LAC Transitions Team
ARGOS LTD,159.99,5310,Client Allowances,23/04/2021,LAC Transitions Team
TVLICENSING.CO.UK,132.50,7392,Client Allowances,23/04/2021,LAC Transitions Team
A2BGo Carz,7.30,4121,Client Transport,23/04/2021,Youth Offending Team
A2BGo Carz,7.00,4121,Client Transport,23/04/2021,Youth Offending Team
A2BGo Carz,9.00,4121,Client Transport,23/04/2021,Youth Offending Team
A2BGo Carz,9.90,4121,Client Transport,23/04/2021,Youth Offending Team
ALDI 78 772,10.89,5411,Cleaning Supplies and Materials,22/04/2021,Children & Family Contact Services
PLANET APPLIANCE,145.00,5399,Equipment - Purchase,22/04/2021,Children & Family Contact Services
Amazon.co.uk M458Z5DA4,537.46,5969,Computing - Purchase of Hardware,22/04/2021,Strategic ICTS (ICT Serv Budget)
Amazon.co.uk M46GJ7294,36.79,5969,,22/04/2021,Power2 Team
ASDA,7.00,5411,,22/04/2021,Emergency Duty Team
ASDA,27.00,5411,,22/04/2021,Emergency Duty Team
CURRYS ONLINE,203.33,5732,Grant Payments,22/04/2021,EIP Locality 2
DIRECT FLOORING BILSTO,150.00,5713,Grant Payments,22/04/2021,EIP Locality 2
Creative Cloud Indiv,496.94,5734,Computing - Purchase of Software,22/04/2021,Headstart - Young People Engagement
PREMIER INN,87.50,3811,Accommodation Costs,22/04/2021,Fostering Team & Allowances
BIRMINGHAM NS T/O,43.40,4112,Public Transport,22/04/2021,LAC Transitions Team
A2BGo Carz,3.50,4121,Client Transport,22/04/2021,Youth Offending Team
A2BGo Carz,9.00,4121,Client Transport,22/04/2021,Youth Offending Team
A2BGo Carz,3.90,4121,Client Transport,22/04/2021,Youth Offending Team
A2BGo Carz,3.50,4121,Client Transport,22/04/2021,Youth Offending Team
A2BGo Carz,4.50,4121,Client Transport,22/04/2021,Youth Offending Team
A2BGo Carz,3.50,4121,Client Transport,22/04/2021,Youth Offending Team
A2BGo Carz,9.90,4121,Client Transport,22/04/2021,Youth Offending Team
LOYD 37 CHURCH STREET,58.33,6011,Client Allowances,22/04/2021,LAC Transitions Team
COMBINED COURT,170.00,9222,Services - Fees and Charges,22/04/2021,Looked After Team 2
VIRGIN MEDIA PYMTS,17.50,4814,Comms - Telephone Call charges,22/04/2021,Community Enablement
SAINSBURYS.CO.UK,187.77,5411,Provisions (Not for resale),22/04/2021,Duke Street Bungalows
THE STANWELL HEATHROW,360.00,7011,Accommodation Costs,22/04/2021,Food and Health & Safety
Amazon.co.uk M46U82224,30.15,5969,Catering,22/04/2021,Civic Centre Catering
W V HOWE LTD,173.76,5072,Catering,22/04/2021,Civic Centre Catering
COMPLETE CARE SHOP,136.50,5047,Fixtures and Fittings - R&M,22/04/2021,Ernest Bold Court
A2BGo Carz,3.50,4121,Direct Work With Children,22/04/2021,Power2 Team
A2BGo Carz,3.50,4121,Direct Work With Children,22/04/2021,Power2 Team
SPORTSDIRECT 214,10.00,5941,Accommodation Costs,22/04/2021,LAC Transitions Accommodation
ISO/CS,183.46,2741,Subscriptions,22/04/2021,Business Continuity & Emergency Planning
ARGOS LTD,12.00,5310,,21/04/2021,
A2BGo Carz,3.50,4121,Direct Work With Children,21/04/2021,Power2 Team
A2BGo Carz,4.10,4121,Direct Work With Children,21/04/2021,Power2 Team
A2BGo Carz,3.50,4121,Direct Work With Children,21/04/2021,Power2 Team
A2BGo Carz,4.10,4121,Direct Work With Children,21/04/2021,Power2 Team
A2BGo Carz,5.90,4121,Direct Work With Children,21/04/2021,Power2 Team
A2BGo Carz,5.90,4121,Direct Work With Children,21/04/2021,Power2 Team
A2BGo Carz,6.10,4121,Direct Work With Children,21/04/2021,Power2 Team
A2BGo Carz,6.20,4121,Direct Work With Children,21/04/2021,Power2 Team
Piktochart Sdn Bhd,387.57,5817,Subscriptions,21/04/2021,Public Health Support Costs
AMZNMKTPLACE AMAZON.CO,15.47,5999,Equipment - Purchase,21/04/2021,COVID-19 – Contained Outbreak Management
ICELAND,92.64,5411,,21/04/2021,LAC Transitions Team
PO WOLVERHAMPTON 0169,20.00,6011,,21/04/2021,LAC Transitions Team
PO WOLVERHAMPTON 0169,50.00,6011,,21/04/2021,LAC Transitions Team
SCREWFIX DIRECT,146.75,5211,Equipment - Purchase,21/04/2021,MI Friendly Cities
ROYAL BK OF SCOTLAND,250.00,6011,,21/04/2021,Power2 Team
Netflix.com,13.99,4899,,21/04/2021,Key to Inspiration
Airpay,4.15,4121,Client Transport,21/04/2021,Youth Offending Team
A2BGo Carz,9.90,4121,Client Transport,21/04/2021,Youth Offending Team
A2BGo Carz,9.00,4121,Client Transport,21/04/2021,Youth Offending Team
POST OFFICE COUNTER,176.85,9402,Comms - Postage,21/04/2021,Youth Offending Team
BARCLAYS,300.00,6011,Client Allowances,21/04/2021,LAC Transitions Accommodation
WWW.AVANTIWESTCOAST.CO,60.90,4112,Client Transport,21/04/2021,LAC Team
HOTELSCOM9186162020626,-84.16,4722,,21/04/2021,Transportation General
HOTELSCOM9186162020626,-84.16,4722,,21/04/2021,Transportation General
HOTELSCOM9186162020626,168.32,4722,,21/04/2021,Transportation General
WWW.CIPFA.ORG.UK,110.00,8699,Training Expenses,21/04/2021,Apprenticeships
ONE STOP 1009,45.90,5411,Comms - Postage,21/04/2021,Ernest Bold Court
AMZNMktplace,95.98,5999,Equipment - Purchase,21/04/2021,Ernest Bold Court
ARGOS LTD,128.95,5310,,21/04/2021,CIN/CP Social Work Unit - Area 4
WP-CENTRAL TAXIS L,233.33,4121,Section 17,21/04/2021,Court Team
WP-CENTRAL TAXIS L,45.00,4121,Section 17,21/04/2021,CIN/CP Social Work Unit - Area 8
SP   BABY TRAVEL LTD,158.29,5641,Section 17,21/04/2021,Winter Grant
A2BGo Carz,5.60,4121,Direct Work With Children,20/04/2021,Power2 Team
Amazon.co.uk M47QF6Q14,21.83,5969,Equipment - Purchase,20/04/2021,COVID-19 – Contained Outbreak Management
B&M 497 - HS WOLVES,1.32,5399,Accommodation Costs,20/04/2021,LAC Transitions Accommodation
B&M 497 - HS WOLVES,4.82,5399,Client Allowances,20/04/2021,LAC Transitions Team
CROMWELL TOOLS,78.41,5072,,20/04/2021,Waste Coll & Recycling Serv General
SCREWFIX DIRECT,9.97,5211,Equipment - Purchase,20/04/2021,Car Parks Operational Staff
SCREWFIX DIR LTD,2.60,5211,Equipment - Purchase,20/04/2021,Car Parks Operational Staff
KD EVENTS AND PUBLISHI,700.00,2741,Marketing \ Non-staff advertising,20/04/2021,Audience Development
ASDA GROCERIES ONLINE,-0.60,5411,Provisions (Not for resale),20/04/2021,Ernest Bold Court
ASDA GROCERIES ONLINE,63.09,5411,Provisions (Not for resale),20/04/2021,Ernest Bold Court
WP-CENTRAL TAXIS L,76.00,4121,Grant Payments,20/04/2021,EIP Locality 2
NoteMachine ATM,108.33,6011,Client Allowances,20/04/2021,LAC Transitions Team
TRAVELODGE,82.60,3615,Client Allowances,20/04/2021,LAC Transitions Team
A2BGo Carz,8.20,4121,Client Transport,20/04/2021,Youth Offending Team
A2BGo Carz,8.90,4121,Client Transport,20/04/2021,Youth Offending Team
ASDA GROCERIES ONLINE,-0.10,5411,Provisions (Not for resale),20/04/2021,Upper Pendeford Farm Childrens Home
ASDA GROCERIES ONLINE,141.19,5411,Provisions (Not for resale),20/04/2021,Upper Pendeford Farm Childrens Home
Essentra Components Li,54.73,5251,Equipment - Purchase,20/04/2021,Telecare
RAYTON ELECT WSALERS L,24.96,5999,,20/04/2021,Cleaning of Buildings - General
CARVER/WOLVERHAMPTON/L,84.11,5211,,20/04/2021,Cleaning of Buildings - General
WP-CENTRAL TAXIS L,48.40,4121,Client Transport,20/04/2021,CIN/CP Social Work Unit - Area 5
WWW.WMCA.CO.UK,1130.00,4112,Public Transport,20/04/2021,Food and Health & Safety
ASDA GROCERIES ONLINE,-0.50,5411,,20/04/2021,Key to Inspiration
SAINSBURYS.CO.UK,52.26,5411,Provisions (Not for resale),20/04/2021,Discretionary Fund
A2BGo Carz,8.90,4121,Direct Work With Children,19/04/2021,Power2 Team
A2BGo Carz,8.90,4121,Direct Work With Children,19/04/2021,Power2 Team
J D SPORTS 595,113.00,5941,,19/04/2021,LAC Transitions Team
BENTLEY BRIDGE WAY SPO,117.48,5941,,19/04/2021,LAC Transitions Team
BENTLEY BRIDGE WAY SPO,12.99,5941,,19/04/2021,LAC Transitions Team
ABC Cars,5.20,4121,,19/04/2021,LAC Transitions Team
ABC Cars,5.20,4121,,19/04/2021,LAC Transitions Team
AMZNMktplace,218.19,5999,Equipment - Purchase,19/04/2021,PCC Election
RS COMPONENTS,2.70,5065,Equipment - Purchase,19/04/2021,Car Parks Operational Staff
SCREWFIX DIRECT,17.60,5211,Equipment - Purchase,19/04/2021,Car Parks Operational Staff
SSE,6.42,4900,Accommodation Costs,19/04/2021,LAC Transitions Team
SSE,6.61,4900,Accommodation Costs,19/04/2021,LAC Transitions Team
B & Q 1243,60.00,5200,R4007,19/04/2021,Bilston Town Hall
W M MORRISONS.COM,83.22,5411,Provisions (Not for resale),19/04/2021,Bradley Resource Centre
ONE STOP 2966,5.00,5411,Provisions (Not for resale),19/04/2021,Bradley Resource Centre
AMZNMktplace,27.90,5999,Materials,19/04/2021,Street Lighting Maintenance
CardtronicsUK,50.00,6011,Client Allowances,19/04/2021,LAC Transitions Accommodation
ARGOS LTD,166.95,5310,Equipment - Purchase,19/04/2021,Winter Grant
ARGOS LTD,35.94,5310,Section 17,19/04/2021,Winter Grant
ARGOS LTD,279.99,5310,Section 17,19/04/2021,Winter Grant
BARCLAYS,250.00,6011,No Recourse to Public Funds,19/04/2021,CIN/CP Social Work Unit - Area 3
PO SLADE ROAD 0980,241.67,6011,Client Allowances,19/04/2021,LAC Transitions Team
PO BIRMINGHAM NEW RD01,25.00,6011,Client Allowances,19/04/2021,LAC Transitions Team
BARCLAYS,66.67,6011,Client Allowances,19/04/2021,LAC Transitions Team
AMZNMktplace,28.24,5999,Equipment - Health and Safety,19/04/2021,Regional Adoption Agency
POST OFFICE COUNTER,352.50,9402,Comms - Postage,19/04/2021,Regional Adoption Agency
ROTOWASH LTD,199.00,5046,Equipment - Purchase,19/04/2021,Aldersley Leisure Village
WWW.AVANTIWESTCOAST.CO,76.00,4112,Public Transport,19/04/2021,LAC Team
Trainline,56.04,4112,Client Allowances,19/04/2021,LAC Transitions Team
ASDA GROCERIES ONLINE,211.47,5411,Provisions (Not for resale),19/04/2021,Key to Inspiration
ASDA GROCERIES ONLINE,5.50,5411,,19/04/2021,Key to Inspiration
ASDA GROCERIES ONLINE,4.68,5411,,19/04/2021,Key to Inspiration
AMZNMktplace,9.47,5999,Books,19/04/2021,Global Budgets
NATIONWIDE,400.00,6011,No Recourse to Public Funds,19/04/2021,NRPF
NATIONWIDE,500.00,6011,No Recourse to Public Funds,19/04/2021,NRPF
PAYPAL  GOOGLE GOOGLE,1.32,5815,Computing - Purchase of Software,19/04/2021,Music Support Team
ARGOS LTD,258.33,5310,Section 17,19/04/2021,Winter Grant
ARGOS LTD,155.79,5310,Section 17,19/04/2021,Winter Grant
AMZNMktplace,14.98,5999,Equipment - Purchase,19/04/2021,Members Expenses
AMZNMktplace,31.92,5999,Equipment - Purchase,19/04/2021,Members Expenses
HOLIDAY INN FAREHA,91.00,7011,Accommodation Costs,19/04/2021,Private Hire Vehicles
MATALAN,79.10,5691,,16/04/2021,
A2BGo Carz,7.70,4121,Direct Work With Children,16/04/2021,Power2 Team
A2BGo Carz,5.90,4121,Direct Work With Children,16/04/2021,Power2 Team
A2BGo Carz,5.90,4121,Direct Work With Children,16/04/2021,Power2 Team
A2BGo Carz,5.40,4121,Direct Work With Children,16/04/2021,Power2 Team
A2BGo Carz,6.20,4121,Direct Work With Children,16/04/2021,Power2 Team
A2BGo Carz,5.40,4121,Direct Work With Children,16/04/2021,Power2 Team
DELL PRODUCTS,2264.10,5045,,16/04/2021,Strategic ICTS (ICT Serv Budget)
SCREWFIX DIRECT,45.70,5211,Materials,16/04/2021,Bilston Town Hall
AMZNMktplace,123.75,5999,Equipment - Purchase,16/04/2021,MI Friendly Cities
AMZNMktplace,87.00,5999,Equipment - Purchase,16/04/2021,MI Friendly Cities
ONE STOP 2966,2.70,5411,Provisions (Not for resale),16/04/2021,Bradley Resource Centre
WWW.BRISTOWSUTOR.C,0.00,9399,VAT,16/04/2021,Revenues
SCREWFIX DIRECT,3.32,5211,Materials,16/04/2021,Bilston Town Hall
WWW.BRISTOWSUTOR.C,0.00,9399,VAT,16/04/2021,Parking Enforcement
TVLICENSING.CO.UK,159.00,7392,Services - General Licences,16/04/2021,Bradley Resource Centre
ASDA GEORGE COM LEEDS,36.00,5411,Clothing / Uniforms,16/04/2021,Winter Grant
A2BGo Carz,7.60,4121,Client Transport,16/04/2021,Youth Offending Team
BIRMINGHAM REGISTER,14.50,9399,Services - Fees and Charges,16/04/2021,LAC Team
AMZNMktplace,23.99,5999,Provisions (Not for resale),16/04/2021,Key to Inspiration
A2BGo Carz,7.60,4121,Client Transport,16/04/2021,Youth Offending Team
SumUp   Up market rugs,35.00,5399,Equipment - Purchase,16/04/2021,Wolverhampton Indoor and Open Market
HOME BARGAINS WOLVERHA,16.53,5251,R4010,16/04/2021,Duke Street Bungalows
Amazon.co.uk M430Z7XF4,29.52,5969,Books,16/04/2021,Global Budgets
WWW.IRRV.ORG.UK,180.00,2741,Training Expenses,16/04/2021,Workforce Development
A2BGo Carz,6.70,4121,Client Transport,16/04/2021,Youth Offending Team
PREMIER INN,33.33,3811,Section 17,16/04/2021,Court Team
WWW.JA.NET,100.80,8699,,15/04/2021,Strategic ICTS (ICT Serv Budget)
OAKLAND,83.33,7011,Accommodation Costs,15/04/2021,Destitute Plus
ABC Cars,5.40,4121,,15/04/2021,LAC Transitions Team
OAKLAND,166.67,7011,Accommodation Costs,15/04/2021,Destitute Plus
ABC Cars,5.40,4121,,15/04/2021,LAC Transitions Team
OAKLAND,166.67,7011,Accommodation Costs,15/04/2021,Destitute Plus
OAKLAND,166.67,7011,Accommodation Costs,15/04/2021,Destitute Plus
OAKLAND,208.33,7011,Accommodation Costs,15/04/2021,Destitute Plus
ARGOS LTD,-20.83,5310,Equipment - Purchase,15/04/2021,Bilston Town Hall
THINKING TALKING,50.00,8299,Training Expenses,15/04/2021,LEP - Leadership & Management Programme
AMZNMktplace,48.29,5999,Materials,15/04/2021,Street Lighting Maintenance
MFG CLAREGATE,64.75,5541,Equipment - Purchase,15/04/2021,Aldersley Leisure Village
MFG CLAREGATE,5.82,5541,Equipment - Hire,15/04/2021,Aldersley Leisure Village
ROTOWASH LTD,23.40,5046,Equipment - Purchase,15/04/2021,Aldersley Leisure Village
APPLE.COM/BILL,2.08,5815,Computing - Purchase of Software,15/04/2021,Corporate Parenting
A2BGo Carz,7.00,4121,Client Transport,15/04/2021,Youth Offending Team
A2BGo Carz,7.10,4121,Client Transport,15/04/2021,Youth Offending Team
A2BGo Carz,3.90,4121,Client Transport,15/04/2021,Youth Offending Team
A2BGo Carz,3.50,4121,Client Transport,15/04/2021,Youth Offending Team
A2BGo Carz,3.50,4121,Client Transport,15/04/2021,Youth Offending Team
COMBINED COURT,170.00,9222,Services - Fees and Charges,15/04/2021,LAC Team
COMBINED COURT,170.00,9222,Services - Fees and Charges,15/04/2021,Looked After Team 2
COMBINED COURT,170.00,9222,Services - Fees and Charges,15/04/2021,LAC Team
ASDA GROCERIES ONLINE,-2.00,5411,Provisions (Not for resale),15/04/2021,Upper Pendeford Farm Childrens Home
ASDA STORES 7134,6.00,5411,Provisions (Not for resale),15/04/2021,Upper Pendeford Farm Childrens Home
PRIMARK,41.00,5651,Clothing / Uniforms,15/04/2021,Key to Inspiration
PRIMARK,41.00,5651,Clothing / Uniforms,15/04/2021,Key to Inspiration
SCREWFIX DIR LTD,29.98,5211,,15/04/2021,Cleaning of Buildings - General
JAMES LISTER & SONS LT,74.22,5085,,15/04/2021,Cleaning of Buildings - General
AMZNMktplace,4.29,5999,Books,15/04/2021,Global Budgets
Recyk Appliances,100.00,7629,Grant Payments,15/04/2021,EIP Locality 3
POST OFFICE COUNTER,255.00,9402,Comms - Postage,15/04/2021,Inclusion Support
APPLIANCEDIRECT CO,131.26,5734,Equipment - Purchase,15/04/2021,CIN/CP Social Work Unit - Area 5
AMZNMktplace,10.29,5999,Catering,15/04/2021,Civic Centre Catering
FIRST RESPONSE FIRST A,50.00,8299,Training Expenses,15/04/2021,Workforce Development
Barriers Direct,358.69,5399,Equipment - Purchase,15/04/2021,Parks - East Area Management
HOME BARGAINS,3.32,5251,Cleaning Supplies and Materials,14/04/2021,Children & Family Contact Services
B&M 333 - AN BENTLEY B,2.00,5399,Cleaning Supplies and Materials,14/04/2021,Children & Family Contact Services
CURRYS ONLINE,199.00,5732,Independant Living Allowance,14/04/2021,LAC Transitions Team
ICELAND,77.46,5411,,14/04/2021,LAC Transitions Team
POUNDSTRETCHER,7.81,5331,,14/04/2021,LAC Transitions Team
ARGOS LTD,41.45,5310,Equipment - Purchase,14/04/2021,PCC Election
SAFETYSUPPL,335.90,5311,Equipment - Purchase,14/04/2021,PCC Election
Amazon.co.uk M406711G4,10.16,5969,Books,14/04/2021,"Citizenship, Language & Learning"
ARGOS LTD,22.45,5310,Independant Living Allowance,14/04/2021,LAC Transitions Team
ARGOS LTD,49.12,5310,Independant Living Allowance,14/04/2021,LAC Transitions Team
ARGOS LTD,46.62,5310,Independant Living Allowance,14/04/2021,LAC Transitions Team
WWW.CORAM.ORG.UK,34.04,8398,Books,14/04/2021,Fostering Team
AMZNMKTPLACE AMAZON.CO,190.95,5999,,14/04/2021,Bert Williams Leisure Centre
A2BGo Carz,4.00,4121,Client Transport,14/04/2021,Power2 Team
A2BGo Carz,3.50,4121,Client Transport,14/04/2021,Power2 Team
A2BGo Carz,3.50,4121,Client Transport,14/04/2021,Power2 Team
A2BGo Carz,4.00,4121,Client Transport,14/04/2021,Power2 Team
A2BGo Carz,3.50,4121,Client Transport,14/04/2021,Power2 Team
A2BGo Carz,3.50,4121,Client Transport,14/04/2021,Power2 Team
A2BGo Carz,3.50,4121,Client Transport,14/04/2021,Power2 Team
Airpay,5.05,4121,Client Transport,14/04/2021,Youth Offending Team
Trainline,44.38,4112,Client Allowances,14/04/2021,LAC Transitions Accommodation
ARGOS LTD,306.95,5310,Client Allowances,14/04/2021,LAC Transitions Team
A2BGo Carz,3.50,4121,Client Transport,14/04/2021,Power2 Team
WIX.COM 923189593,186.26,5817,Subscriptions,14/04/2021,Technical Support
AMZNMktplace,5.95,5999,Books,14/04/2021,Global Budgets
ASDA GROCERIES ONLINE,-1.12,5411,Provisions (Not for resale),13/04/2021,Ernest Bold Court
ASDA GROCERIES ONLINE,52.54,5411,Provisions (Not for resale),13/04/2021,Ernest Bold Court
ARGOS LTD,16.65,5310,Equipment - Purchase,13/04/2021,Cemeteries
TESCO STORES 6197,16.99,5411,Independant Living Allowance,13/04/2021,LAC Transitions Team
WICKES BUILDING,423.80,5211,Equipment - Purchase,13/04/2021,MI Friendly Cities
WEST MIDLAND SAFARI PA,161.00,7922,"Educ Trips, Holidays, Outings, Activity",13/04/2021,Key to Inspiration
CT WOLVERHAMPTON,80.00,8398,Client Allowances,13/04/2021,LAC Transitions Team
A2BGo Carz,4.80,4121,Client Transport,13/04/2021,Power2 Team
A2BGo Carz,5.10,4121,Client Transport,13/04/2021,Youth Offending Team
A2BGo Carz,7.30,4121,Client Transport,13/04/2021,Youth Offending Team
A2BGo Carz,5.10,4121,Client Transport,13/04/2021,Youth Offending Team
ASDA GROCERIES ONLINE,-0.92,5411,Provisions (Not for resale),13/04/2021,Upper Pendeford Farm Childrens Home
ASDA GROCERIES ONLINE,128.17,5411,Provisions (Not for resale),13/04/2021,Upper Pendeford Farm Childrens Home
ARGOS LTD,48.95,5310,Client Allowances,13/04/2021,LAC Transitions Team
ASDA SUPERSTORE,117.50,5411,Section 17,13/04/2021,Winter Grant
AMZNMktplace,11.98,5999,Equipment - Purchase,13/04/2021,Inclusion Support
WWW.CIPFA.ORG.UK,220.00,8699,Training Expenses,13/04/2021,Apprenticeships
MALG,344.76,8699,Training Expenses,13/04/2021,Workforce Development
24 BRIDGNORTH ROAD Sa,460.00,6011,No Recourse to Public Funds,13/04/2021,NRPF
AMZNMKTPLACE AMAZON.CO,44.12,5999,,12/04/2021,Strategic ICTS (ICT Serv Budget)
AMZNMKTPLACE AMAZON.CO,33.96,5999,,12/04/2021,Strategic ICTS (ICT Serv Budget)
AMZNMktplace,104.60,5999,Equipment - Purchase,12/04/2021,MI Friendly Cities
A2BGo Carz,6.20,4121,Direct Work With Children,12/04/2021,Power2 Team
A2BGo Carz,6.20,4121,Direct Work With Children,12/04/2021,Power2 Team
AMZNMKTPLACE AMAZON.CO,10.99,5999,Equipment - Purchase,12/04/2021,Bradley Resource Centre
ZOOM.US 888-799-9666,9.99,4814,Subscriptions,12/04/2021,WV Active Marketing
W M MORRISONS.COM,212.76,5411,Provisions (Not for resale),12/04/2021,Bradley Resource Centre
B&M 497 - HS WOLVES,6.00,5399,Accommodation Costs,12/04/2021,LAC Transitions Team
ARGOS LTD,249.17,5310,Client Allowances,12/04/2021,LAC Transitions Team
ARGOS LTD,255.79,5310,Client Allowances,12/04/2021,LAC Transitions Team
Amazon.co.uk M47I28JI4,66.50,5969,Equipment - Purchase,12/04/2021,Aldersley Leisure Village
AMZNMktplace,12.48,5999,Equipment - Purchase,12/04/2021,Bert Williams Leisure Centre
RESPONSTER PLUS PLAN,14.31,5734,Computing - Purchase of Software,12/04/2021,City Direct
A2BGo Carz,4.50,4121,Client Transport,12/04/2021,Youth Offending Team
A2BGo Carz,4.50,4121,Client Transport,12/04/2021,Youth Offending Team
A2BGo Carz,3.90,4121,Client Transport,12/04/2021,Youth Offending Team
Airpay,4.15,4121,Client Transport,12/04/2021,Youth Offending Team
ASDA GROCERIES ONLINE,-1.74,5411,Provisions (Not for resale),12/04/2021,Key to Inspiration
ASDA GROCERIES ONLINE,223.06,5411,Provisions (Not for resale),12/04/2021,Key to Inspiration
CUMMINGS BROTHERS LOCK,97.20,7399,Equipment - Purchase,12/04/2021,Wolverhampton Indoor and Open Market
123 REG LTD,9.99,5968,Subscriptions,12/04/2021,Technical Support
123 REG LTD,19.98,5968,Subscriptions,12/04/2021,Technical Support
123 REG LTD,9.99,4816,Subscriptions,12/04/2021,Technical Support
ASDA GROCERIES ONLINE,-3.05,5411,Provisions (Not for resale),12/04/2021,Duke Street Bungalows
ASDA GROCERIES ONLINE,125.60,5411,Provisions (Not for resale),12/04/2021,Duke Street Bungalows
CUMMINGS BROTHERS LOCK,97.20,7399,Equipment - Purchase,12/04/2021,Wolverhampton Indoor and Open Market
ASDA GROCERIES ONLINE,126.56,5411,Provisions (Not for resale),12/04/2021,Duke Street Bungalows
ASDA GROCERIES ONLINE,22.46,5411,Provisions (Not for resale),12/04/2021,Duke Street Bungalows
AA MEMBERSHIP,218.74,8675,Services - Professional Fees,12/04/2021,Fleet Management
Amazon.co.uk M44JD1J94,12.14,5969,Equipment - Purchase,12/04/2021,Parks - East Area Management
POST OFFICE COUNTER,7.65,9402,Comms - Postage,12/04/2021,Fleet Management
SAINSBURYS.CO.UK,69.31,5411,Provisions (Not for resale),12/04/2021,Duke Street Bungalows
TFM FARM   COUNTRY,126.81,0763,Equipment - Purchase,12/04/2021,Northicote Farm
E C STRAITON,93.45,0742,Professional fees,12/04/2021,Northicote Farm
Amazon.co.uk M42A15T74,10.55,5969,Equipment - Purchase,12/04/2021,Parks - East Area Management
A2BGo Carz,6.20,4121,Direct Work With Children,09/04/2021,Power2 Team
A2BGo Carz,6.90,4121,Direct Work With Children,09/04/2021,Power2 Team
A2BGo Carz,6.10,4121,Direct Work With Children,09/04/2021,Power2 Team
A2BGo Carz,5.40,4121,Direct Work With Children,09/04/2021,Power2 Team
A2BGo Carz,6.90,4121,Direct Work With Children,09/04/2021,Power2 Team
A2BGo Carz,5.40,4121,Direct Work With Children,09/04/2021,Power2 Team
A2BGo Carz,4.10,4121,Direct Work With Children,09/04/2021,Power2 Team
A2BGo Carz,5.00,4121,Direct Work With Children,09/04/2021,Power2 Team
SimplyBookME,100.00,7399,Subscriptions,09/04/2021,COVID-19 – Contained Outbreak Management
SCREWFIX DIRECT,527.66,5211,Equipment - Purchase,09/04/2021,MI Friendly Cities
AMZNMktplace,51.75,5999,Equipment - Purchase,09/04/2021,MI Friendly Cities
AMZNMktplace,41.62,5999,Equipment - Purchase,09/04/2021,MI Friendly Cities
AMZNMktplace,47.25,5999,Equipment - Purchase,09/04/2021,MI Friendly Cities
AMZNMktplace,98.00,5999,Equipment - Purchase,09/04/2021,MI Friendly Cities
AMZNMktplace,48.75,5999,Equipment - Purchase,09/04/2021,MI Friendly Cities
AMZNMktplace,47.34,5999,Equipment - Purchase,09/04/2021,MI Friendly Cities
PREMIER INN,169.52,3811,Accommodation Costs,09/04/2021,Electoral Registration
PREMIER INN,81.90,3811,Accommodation Costs,09/04/2021,Electoral Registration
WWW.ICELAND.CO.UK,-1.00,5411,Provisions (Not for resale),09/04/2021,Bradley Resource Centre
WWW.ICELAND.CO.UK,49.23,5411,Provisions (Not for resale),09/04/2021,Bradley Resource Centre
INSTITUTELI,100.00,8699,Training Expenses,09/04/2021,Private Hire Drivers
NATWEST BANK,150.00,6011,Client Allowances,09/04/2021,LAC Transitions Team
SEVERN TRENT WATER,52.41,4900,Accommodation Costs,09/04/2021,LAC Transitions Team
PO OLD HILL 0676,200.00,6011,Client Allowances,09/04/2021,LAC Transitions Team
WWW.HSS.COM,-6.12,7394,,09/04/2021,Bert Williams Leisure Centre
PREMIER INN,96.67,3811,Accommodation Costs,09/04/2021,Regional Adoption Agency
WWW.CORAM.ORG.UK,22.42,8398,Publications,09/04/2021,Fostering Team
WWW.HSS.COM,-158.40,7394,,09/04/2021,Bert Williams Leisure Centre
AMZNMKTPLACE AMAZON.CO,32.00,5999,Client Allowances,09/04/2021,LAC Transitions Team
A2BGo Carz,7.60,4121,Client Transport,09/04/2021,Youth Offending Team
WWW.HSS.COM,-117.48,7394,,09/04/2021,Bert Williams Leisure Centre
A2BGo Carz,7.60,4121,Client Transport,09/04/2021,Youth Offending Team
APPLE.COM/BILL,0.79,5815,Computing - Purchase of Software,09/04/2021,Managing Director
CITY OF WOLVERHAMPTON,16.00,9399,Services - Fees and Charges,09/04/2021,"Court of Protection, Funerals Prot Prop"
ARGOS LTD,103.93,5310,Equipment - Purchase,09/04/2021,Wolverhampton Indoor and Open Market
TVLICENSING.CO.UK,132.50,7392,Client Allowances,09/04/2021,LAC Transitions Team
BOOKER LIMITED WOLVERH,181.96,5811,Catering,09/04/2021,Education Catering - General Overheads
BOOKER LIMITED WOLVERH,192.90,5811,Catering,09/04/2021,Education Catering - General Overheads
BOOKER LIMITED WOLVERH,174.11,5811,Catering,09/04/2021,Education Catering - General Overheads
IGPP LTD,295.00,7299,Training Expenses,09/04/2021,Workforce Development
ALBRIGHTON GARDEN CENT,22.47,5261,Equipment - Purchase,09/04/2021,Youth Offending Team
CITY OF WOLVERHAMPTON,40.00,9399,Services - Fees and Charges,09/04/2021,Looked After Team 2
AMZNMktplace,5.74,5999,Equipment - Purchase,09/04/2021,Ernest Bold Court
AMZNMktplace,62.81,5999,Equipment - Purchase,09/04/2021,Ernest Bold Court
EDPSY.ORG.UK,20.00,5818,Training Expenses,09/04/2021,Workforce Development
AMZNMKTPLACE AMAZON.CO,18.30,5999,Equipment - Purchase,09/04/2021,Parks - East Area Management
PAYPAL  HORNER SHEA,129.15,5099,Equipment - Purchase,09/04/2021,Northicote Farm
WWW.LETSRECYCLE.COM,101.47,5815,Training Expenses,09/04/2021,Workforce Development
A2BGo Carz,8.90,4121,Direct Work With Children,08/04/2021,Power2 Team
AMZNMktplace,49.97,5999,Equipment - Purchase,08/04/2021,MI Friendly Cities
A2BGo Carz,8.80,4121,Direct Work With Children,08/04/2021,Power2 Team
SCREWFIX DIRECT,1761.99,5211,Equipment - Purchase,08/04/2021,MI Friendly Cities
SAFETYSUPPL,105.05,5311,Equipment - Purchase,08/04/2021,MI Friendly Cities
AMZNMktplace,21.46,5999,Equipment - Purchase,08/04/2021,MI Friendly Cities
AMZNMktplace,45.62,5999,Equipment - Purchase,08/04/2021,MI Friendly Cities
AMZNMktplace,216.60,5999,Equipment - Purchase,08/04/2021,Electoral Registration
WATERSTONES.COM,23.99,5942,R4007,08/04/2021,Research & Development
Amazon.co.uk M406M9F74,24.19,5969,Books,08/04/2021,"Citizenship, Language & Learning"
SAINSBURYS (2340),6.00,5411,Client Allowances,08/04/2021,LAC Transitions Team
PREMIER INN,33.75,3811,Accommodation Costs,08/04/2021,Fostering Team & Allowances
AMZNMktplace,48.10,5999,Equipment - Purchase,08/04/2021,MI Friendly Cities
WE LOVE KEYS,26.76,5734,Equipment - Purchase,08/04/2021,Bert Williams Leisure Centre
NNECL.WHITEFUSE.NET,250.00,8351,Services - Professional Fees,08/04/2021,Pupil Premium
ARGOS LTD,290.43,5310,Client Allowances,08/04/2021,LAC Transitions Team
A2BGo Carz,6.90,4121,Client Transport,08/04/2021,Youth Offending Team
A2BGo Carz,5.00,4121,Client Transport,08/04/2021,Youth Offending Team
A2BGo Carz,5.10,4121,Client Transport,08/04/2021,Youth Offending Team
A2BGo Carz,5.10,4121,Client Transport,08/04/2021,Youth Offending Team
A2BGo Carz,3.50,4121,Client Transport,08/04/2021,Youth Offending Team
A2BGo Carz,5.60,4121,Client Transport,08/04/2021,Youth Offending Team
CardtronicsUK,8.33,6011,Client Allowances,08/04/2021,LAC Transitions Team
CITY OF WOLVERHAMPTON,16.00,9399,Services - Fees and Charges,08/04/2021,LAC Team
ASDA GROCERIES ONLINE,-0.15,5411,Provisions (Not for resale),08/04/2021,Upper Pendeford Farm Childrens Home
ASDA GROCERIES ONLINE,127.11,5411,Provisions (Not for resale),08/04/2021,Upper Pendeford Farm Childrens Home
SCREWFIX DIRECT,16.07,5211,Equipment - Purchase,08/04/2021,Business Support Services
eBay O 12-06865-56133,258.45,5311,Computing - Consumables,08/04/2021,Libraries
WWW.WMCA.CO.UK,1130.00,9399,Public Transport,08/04/2021,Food and Health & Safety
WWW.NOBISCO.CO.UK,81.45,5085,Cleaning Supplies and Materials,08/04/2021,Community Enablement
CO-OP GROUP 070362,10.80,5411,Provisions (Not for resale),08/04/2021,Northicote Farm
A2BGo Carz,4.10,4121,Direct Work With Children,07/04/2021,Power2 Team
A2BGo Carz,4.10,4121,Direct Work With Children,07/04/2021,Power2 Team
GOVERNMENT EVENTS,289.00,8641,Training Expenses,07/04/2021,SWP – Cohesion Activities
ICELAND,47.41,5411,,07/04/2021,LAC Transitions Team
GEN REGISTER OFFICE,14.00,9399,,07/04/2021,LAC Transitions Team
POUNDSTRETCHER,28.98,5331,,07/04/2021,LAC Transitions Team
Microsoft Microsoft 36,59.99,5816,,07/04/2021,MI Friendly Cities
ARGOS LTD,-12.50,5310,Equipment - Purchase,07/04/2021,Bilston Town Hall
ARGOS LTD,41.67,5310,Equipment - Purchase,07/04/2021,Bilston Town Hall
DIXONS FAMILY BUTCHERS,85.00,5499,Provisions (Not for resale),07/04/2021,Bradley Resource Centre
HOMEBASE LTD 103,22.37,5200,Materials,07/04/2021,Specialist Support Service - North
E.ON ENERGY SOLUTIONS,35.40,4900,Accommodation Costs,07/04/2021,LAC Transitions Team
ARGOS LTD,42.03,5310,Computing - Consumables,07/04/2021,Fostering Team & Allowances
ROYAL MAIL ONLINE SHOP,85.00,9402,Comms - Postage,07/04/2021,Fostering Team & Allowances
ROYAL MAIL ONLINE SHOP,85.00,9402,Comms - Postage,07/04/2021,Fostering Team
Amazon.co.uk M49TM4CI4,14.40,5969,Equipment - Purchase,07/04/2021,Bert Williams Leisure Centre
ARGOS LTD,83.33,5310,Equipment - Purchase,07/04/2021,Bilston Town Hall
GEN REGISTER OFFICE,11.00,9399,Equipment - Purchase,07/04/2021,Youth Offending Team
ASDA GEORGE COM LEEDS,60.50,5411,Client Allowances,07/04/2021,CIN/CP Social Work Unit - Area 8
NATIONWIDE,500.00,6011,No Recourse to Public Funds,07/04/2021,NRPF
POST OFFICE COUNTER,2.25,9402,No Recourse to Public Funds,07/04/2021,NRPF
ALBRIGHTON FEEDS LTD,135.00,5995,Materials,07/04/2021,Parks - Ranger Service
Wix.com,279.39,5817,Subscriptions,07/04/2021,Technical Support
SAINSBURYS LOCAL (4357,60.00,5411,No Recourse to Public Funds,07/04/2021,NRPF
ASDA GROCERIES ONLINE,43.02,5411,Provisions (Not for resale),06/04/2021,Ernest Bold Court
ZOOM.US 888-799-9666,11.99,4814,Subscriptions,05/04/2021,Art Gallery
GOOGLE  ADS9680351324,500.00,7311,R4317,05/04/2021,Communications & Marketing - General
ASDA STORE 4753,10.89,5411,Provisions (Not for resale),05/04/2021,Bradley Resource Centre
AMZNMktplace,62.67,5999,Protective Clothing,05/04/2021,Document Centre - General
WWW.HSS.COM,117.48,7394,,05/04/2021,Bert Williams Leisure Centre
WWW.HSS.COM,164.52,7394,,05/04/2021,Bert Williams Leisure Centre
AMZNMKTPLACE AMAZON.CO,14.99,5999,Equipment - Purchase,05/04/2021,Bert Williams Leisure Centre
AMZNMktplace,53.95,5999,Equipment - Purchase,05/04/2021,City Direct
AMZNMktplace,14.68,5999,Equipment - Purchase,05/04/2021,Youth Offending Team
PREMIER INN,35.00,3811,Accommodation Costs,05/04/2021,Looked After Team 2
NETFLIX.COM,11.29,4899,Subscriptions,05/04/2021,Upper Pendeford Farm Childrens Home
ASDA GROCERIES ONLINE,-2.18,5411,Provisions (Not for resale),05/04/2021,Key to Inspiration
ASDA GROCERIES ONLINE,188.75,5411,Provisions (Not for resale),05/04/2021,Key to Inspiration
ALDI 73 772,5.93,5411,Client Allowances,05/04/2021,LAC Transitions Accommodation
SAINSBURYS.CO.UK,254.84,5411,Provisions (Not for resale),05/04/2021,Duke Street Bungalows
WWW.ICELAND.CO.UK,-1.25,5411,Provisions (Not for resale),05/04/2021,Duke Street Bungalows
SPORTSDIRECT.COM,53.98,5941,Grant Payments,05/04/2021,EIP Locality 5
WWW.ICELAND.CO.UK,37.25,5411,Provisions (Not for resale),05/04/2021,Duke Street Bungalows
Sandhu Costsaver,14.00,5411,Catering,05/04/2021,Meals on Wheels
THE RANGE,7.98,5311,Provisions (Not for resale),05/04/2021,Ernest Bold Court
ZOOM.US 888-799-9666,11.99,4814,Subscriptions,05/04/2021,Talk English
AMZNMktplace,12.48,5999,Equipment - Purchase,05/04/2021,Northicote Farm
A2BGo Carz,5.40,4121,Direct Work With Children,02/04/2021,Power2 Team
A2BGo Carz,6.20,4121,Direct Work With Children,02/04/2021,Power2 Team
A2BGo Carz,5.90,4121,Direct Work With Children,02/04/2021,Power2 Team
A2BGo Carz,5.90,4121,Direct Work With Children,02/04/2021,Power2 Team
A2BGo Carz,5.40,4121,Direct Work With Children,02/04/2021,Power2 Team
JD SPORTS INTERNET,95.99,5941,,02/04/2021,Key to Inspiration
JOHNSON CLEANERS UK LT,11.50,5999,,02/04/2021,Cemeteries
B&M 497 - HS WOLVES,23.75,5399,Client Allowances,02/04/2021,LAC Transitions Team
NoteMachine ATM,240.00,6011,,02/04/2021,LAC Transitions Team
DVLA DRIVER ONLINE,34.00,9399,,02/04/2021,LAC Transitions Team
GEN REGISTER OFFICE,11.00,9399,,02/04/2021,LAC Transitions Team
PREMIER INN,120.00,3811,Accommodation Costs,02/04/2021,Electoral Registration
PO BIRMINGHAM NEW RD01,66.67,6011,Client Allowances,02/04/2021,LAC Transitions Team
A2BGo Carz,6.10,4121,Direct Work With Children,02/04/2021,Power2 Team
WP-CENTRAL TAXIS L,306.00,4121,Client Transport,02/04/2021,Alternative Provision
A2BGo Carz,9.20,4121,Client Transport,02/04/2021,Youth Offending Team
A2BGo Carz,7.60,4121,Client Transport,02/04/2021,Youth Offending Team
ASDA SUPERSTORE,4.95,5411,Client Allowances,02/04/2021,LAC Transitions Team
ASDA SUPERSTORE,195.83,5411,Client Allowances,02/04/2021,LAC Transitions Team
ASDA SUPERSTORE,11.40,5411,Client Allowances,02/04/2021,LAC Transitions Team
B&M 497 - HS WOLVES,194.10,5399,Client Allowances,02/04/2021,LAC Transitions Team
WP-CENTRAL TAXIS L,30.40,4121,Client Transport,02/04/2021,Looked After Team 2
CardtronicsUK,21.99,6011,Provisions (Not for resale),02/04/2021,LAC Transitions Team
A2BGo Carz,3.50,4121,Client Transport,02/04/2021,Youth Offending Team
A2BGo Carz,7.60,4121,Client Transport,02/04/2021,Youth Offending Team
PO LOW HILL 1592,160.00,6011,Client Allowances,02/04/2021,LAC Transitions Team
WWW.AVANTIWESTCOAST.CO,-139.25,4112,,02/04/2021,Looked After Team 2
RS COMPONENTS,22.49,5065,Cleaning Supplies and Materials,02/04/2021,Business Support Services
Spotify,213.22,5815,Marketing \ Non-staff advertising,02/04/2021,Business Support Services
CURRYS ONLINE,204.15,5732,Client Allowances,02/04/2021,LAC Transitions Team
CARESHOP,351.00,5999,Equipment - Purchase,02/04/2021,Duke Street Bungalows
POST OFFICE COUNTER,22.95,9402,,01/04/2021,Cemeteries
HOME BARGAINS,1.66,5251,Client Allowances,01/04/2021,LAC Transitions Team
B&M 497 - HS WOLVES,24.99,5399,Client Allowances,01/04/2021,LAC Transitions Team
B&M 497 - HS WOLVES,48.29,5399,Client Allowances,01/04/2021,LAC Transitions Team
B&M 262 - WILLENHALL,9.57,5399,Client Allowances,01/04/2021,LAC Transitions Team
DVSA  LEARNER,23.00,9399,Independant Living Allowance,01/04/2021,LAC Transitions Team
GREGGS PLC,3.00,5812,,01/04/2021,LAC Transitions Team
ONEBELOW,5.10,5411,,01/04/2021,LAC Transitions Team
SAINSBURYS LOC4471,25.00,5411,,01/04/2021,LAC Transitions Team
WILKO RETAIL LIMITED,5.00,5399,,01/04/2021,LAC Transitions Team
NEWANDUSEDPALLET,142.50,5085,Equipment - Purchase,01/04/2021,Electoral Registration
CAMALOON,248.89,5691,Materials,01/04/2021,Electoral Registration
WEX PHOTOGRAPHIC,72.49,5946,Equipment - Purchase,01/04/2021,Communications & Marketing - General
Amazon.co.uk MU65J62E4,33.32,5969,Equipment - Purchase,01/04/2021,Communications & Marketing - General
FACEBK RES2K4X9R2,275.74,7311,R4317,01/04/2021,Communications & Marketing - General
CUMMINGS BROTHERS LOCK,4.17,7399,Accommodation Costs,01/04/2021,LAC Transitions Accommodation
SCREWFIX DIRECT,17.60,5211,,01/04/2021,ALV - Darts & Comedy
WM MORRISONS STORE,88.99,5411,Provisions (Not for resale),01/04/2021,Bradley Resource Centre
WWW.ICELAND.CO.UK,151.77,5411,Provisions (Not for resale),01/04/2021,Bradley Resource Centre
CUMMINGS BROTHERS LOCK,60.00,7399,,01/04/2021,Specialist Support Service - North
PLANET APPLIANCE,145.00,5399,,01/04/2021,LAC Transitions Team
PLANET APPLIANCE,175.00,5399,,01/04/2021,LAC Transitions Team
UNITED CARPETS BEDS,250.00,5713,,01/04/2021,LAC Transitions Team
UNITED CARPETS BEDS,250.00,5713,,01/04/2021,LAC Transitions Team
UNITED CARPETS BEDS,250.00,5713,,01/04/2021,LAC Transitions Team
AMZNMktplace,90.00,5999,Equipment - Purchase,01/04/2021,Bradley Resource Centre
NoteMachine ATM,200.00,6011,Client Allowances,01/04/2021,LAC Transitions Team
PO BIRMINGHAM NEW RD01,108.33,6011,Client Allowances,01/04/2021,LAC Transitions Team
ASDA SUPERSTORE,249.17,5411,Client Allowances,01/04/2021,LAC Transitions Team
ASDA SUPERSTORE,171.25,5411,Client Allowances,01/04/2021,LAC Transitions Team
B&M 497 - HS WOLVES,90.77,5399,Client Allowances,01/04/2021,LAC Transitions Team
Airpay,5.35,4121,Section 17,01/04/2021,CIN/CP Social Work Unit - Area 6
Airpay,4.75,4121,Section 17,01/04/2021,CIN/CP Social Work Unit - Area 6
A2BGo Carz,3.50,4121,Client Transport,01/04/2021,Youth Offending Team
A2BGo Carz,9.20,4121,Client Transport,01/04/2021,Youth Offending Team
A2BGo Carz,6.30,4121,Client Transport,01/04/2021,Youth Offending Team
A2BGo Carz,10.20,4121,Client Transport,01/04/2021,Youth Offending Team
A2BGo Carz,6.30,4121,Client Transport,01/04/2021,Youth Offending Team
ARGOS LTD,8.75,5310,Client Allowances,01/04/2021,LAC Transitions Team
AMZNMKTPLACE AMAZON.CO,10.48,5999,Cleaning Supplies and Materials,01/04/2021,Key to Inspiration
A2BGo Carz,3.50,4121,Client Transport,01/04/2021,Youth Offending Team
AMZNMktplace,9.16,5999,Equipment - Purchase,01/04/2021,Business Support Services
FACEBK 9NP44ZSC22,324.63,7311,Marketing \ Non-staff advertising,01/04/2021,Business Support Services
ARGOS WOLVERHAMPTO,-50.97,5310,Client Allowances,01/04/2021,LAC Transitions Team
CITY OF WOLVERHAMPTON,11.00,9399,Services - Fees and Charges,01/04/2021,"Court of Protection, Funerals Prot Prop"
ARGOS LTD,229.99,5310,Grant Payments,01/04/2021,Winter Grant
ARGOS LTD,229.99,5310,Grant Payments,01/04/2021,Winter Grant
AMZNMktplace,15.82,5999,Equipment - Purchase,01/04/2021,Parking Enforcement
WM MORRISONS STORE,90.40,5411,Catering,01/04/2021,Meals on Wheels
SAINSBURYS SACAT (2340,2.08,5411,Equipment - Purchase,01/04/2021,School Crossing Patrol
ARGOS LTD,254.16,5310,Section 17,01/04/2021,Winter Grant
